bitfinex/quotes_BTCUSD_20241216
["timestamp","ask_amount","ask_price","bid_price","bid_amount"]
[1734340837716,0.82776956,104490.0,104480.0,0.00016924]
[1734340838817,0.92263558,104490.0,104480.0,0.00016924]
[1734340839267,0.82846032,104490.0,104480.0,0.00016924]
[1734340840243,0.84772125,104490.0,104480.0,0.00016924]
[1734340841956,0.85718599,104490.0,104480.0,0.00016924]
[1734340842373,0.81728599,104490.0,104480.0,0.00016924]
[1734340842808,0.81728599,104490.0,104480.0,0.00025554]
[1734340842809,0.62755395,104490.0,104480.0,0.00025554]
[1734340843021,0.72241997,104490.0,104480.0,0.00025554]
[1734340847523,0.72530014,104490.0,104480.0,0.00025554]
[1734340847729,0.81060734,104490.0,104480.0,0.00025554]
[1734340848830,0.9047826,104490.0,104480.0,0.00025554]
[1734340849461,1.0327434,104490.0,104480.0,0.00025554]
[1734340850084,0.90600715,104490.0,104480.0,0.00025554]
[1734340852439,1.07662155,104490.0,104480.0,0.00025554]
[1734340853326,0.46699877,104490.0,104480.0,0.00025554]
[1734340853533,0.14916264,104490.0,104480.0,0.21405154]
[1734340853735,0.06505184,104490.0,104480.0,0.21405154]
[1734340853952,0.06462122,104490.0,104480.0,0.21405154]
[1734340854399,0.06479382,104490.0,104480.0,0.21405154]
[1734340854610,0.12709885,104490.0,104480.0,0.21405154]
[1734340856155,0.06479382,104490.0,104480.0,0.21405154]
[1734340858505,0.03506,104480.0,104470.0,0.15239388]
[1734340858706,0.1293507,104480.0,104470.0,0.30239388]
[1734340861639,0.1293507,104480.0,104470.0,0.38339388]
[1734340862270,0.1293507,104480.0,104470.0,0.2791]
[1734340862480,0.1293507,104480.0,104470.0,0.413099]
[1734340864079,0.0942907,104480.0,104470.0,0.413099]
[1734340865387,0.1293507,104480.0,104470.0,0.413099]
[1734340866007,0.0942907,104480.0,104470.0,0.4131853]
[1734340866216,0.0944633,104480.0,104470.0,0.4131853]
[1734340867029,0.0001726,104480.0,104470.0,0.4131853]
[1734340867460,0.0001726,104480.0,104470.0,0.41294256]
[1734340869721,0.0944633,104480.0,104470.0,0.31294256]
[1734340870955,0.1295233,104480.0,104470.0,0.31294256]
[1734340871167,0.13071972,104480.0,104470.0,0.23194256]
[1734340871593,0.67211972,104480.0,104470.0,0.23194256]
[1734340871803,0.6709233,104480.0,104470.0,0.23194256]
[1734340872240,0.6709233,104480.0,104470.0,0.22123856]
[1734340876688,0.6709233,104480.0,104470.0,0.30343856]
[1734340877729,0.1295233,104480.0,104470.0,0.30343856]
[1734340878578,0.1295233,104480.0,104470.0,0.30076256]
[1734340878829,0.13071972,104480.0,104470.0,0.21856256]
[1734340879250,0.13071972,104480.0,104470.0,0.1340853]
[1734340879884,0.1295233,104480.0,104470.0,0.1340853]
[1734340880316,0.1295233,104480.0,104470.0,0.19636167]
[1734340880526,0.0944633,104480.0,104470.0,0.27276167]
[1734340880729,0.1295233,104480.0,104470.0,0.42276167]
[1734340880947,0.1295233,104480.0,104470.0,0.3604853]
[1734340882714,0.1295233,104480.0,104470.0,0.11798192]
[1734340883133,0.1295233,104480.0,104470.0,0.25198092]
[1734340883983,0.1295233,104480.0,104470.0,0.31425729]
[1734340885639,0.0001726,104480.0,104470.0,0.31425729]
[1734340885854,0.0001726,104480.0,104470.0,0.38075729]
[1734340886056,0.0001726,104480.0,104470.0,0.42725729]
[1734340887109,0.0001726,104480.0,104470.0,0.5903317]
[1734340887317,6e-07,104480.0,104470.0,0.5903317]
[1734340887908,6e-07,104480.0,104470.0,0.6133317]
[1734340888120,6e-07,104480.0,104470.0,0.67791311]
[1734340888757,8.8e-07,104500.0,104490.0,0.15]
[1734340888957,2.5e-07,104500.0,104490.0,0.4927269]
[1734340889389,2.5e-07,104500.0,104490.0,0.6767109]
[1734340889598,2.5e-07,104500.0,104490.0,0.7210016]
[1734340890083,2.5e-07,104500.0,104490.0,0.7710016]
[1734340890618,2.5e-07,104500.0,104490.0,0.7210016]
[1734340891029,2.5e-07,104500.0,104490.0,0.7710016]
[1734340891032,0.0002126,104530.0,104520.0,0.133945]
[1734340891322,0.0002126,104530.0,104520.0,0.37878845]
[1734340891597,0.00077648,104530.0,104520.0,0.37878845]
[1734340892731,0.00077648,104530.0,104520.0,0.46451758]
[1734340893346,0.00077648,104530.0,104520.0,0.37878845]
[1734340896060,0.00077648,104530.0,104520.0,0.283945]
[1734340896887,4.8e-07,104530.0,104520.0,0.388385]
[1734340897287,4.8e-07,104530.0,104520.0,0.438385]
[1734340898008,4.8e-07,104530.0,104520.0,0.44814002]
[1734340900386,0.00017308,104530.0,104520.0,0.44814002]
[1734340900958,0.00017308,104530.0,104520.0,0.39814002]
[1734340901237,8e-08,104530.0,104520.0,0.39814002]
[1734340907212,8e-08,104530.0,104520.0,0.33164002]
[1734340907435,8e-08,104530.0,104520.0,0.29370002]
[1734340907652,4.008e-05,104530.0,104520.0,0.29370002]
[1734340921236,4.008e-05,104530.0,104520.0,0.15]
[1734340921438,4.008e-05,104530.0,104520.0,0.283945]
[1734340922722,8e-08,104530.0,104520.0,0.3219713]
[1734340922960,8e-08,104530.0,104520.0,0.47046242]
[1734340923165,8e-08,104530.0,104520.0,0.53696242]
[1734340924010,8e-08,104530.0,104520.0,0.532762]
[1734340924676,8e-08,104530.0,104520.0,0.53622968]
[1734340924879,8e-08,104530.0,104520.0,0.532762]
[1734340927077,0.0001726,104560.0,104540.0,0.24704]
[1734340927279,0.00022897,104560.0,104550.0,0.133907]
[1734340927488,0.00022897,104560.0,104550.0,0.283907]
[1734340930080,0.12722897,104560.0,104550.0,0.283907]
[1734340934704,0.08062897,104560.0,104550.0,0.283907]
[1734340936969,0.08062897,104560.0,104550.0,0.36921056]
[1734340937321,0.08062897,104560.0,104550.0,0.49716591]
[1734340937532,9.7e-07,104560.0,104550.0,0.50380224]
[1734340937750,9.7e-07,104560.0,104550.0,0.58240224]
[1734340938791,9.7e-07,104560.0,104550.0,0.70799661]
[1734340939444,9.7e-07,104560.0,104550.0,0.93055162]
[1734340939719,9.7e-07,104560.0,104550.0,0.94320394]
[1734340940857,5.7e-07,104570.0,104560.0,0.18794]
[1734340941077,5.7e-07,104570.0,104560.0,0.93023542]
[1734340941277,5.7e-07,104570.0,104560.0,0.98562416]
[1734340941408,5.7e-07,104570.0,104560.0,1.11407217]
[1734340941817,5.7e-07,104570.0,104560.0,0.98562416]
[1734340942795,5.7e-07,104570.0,104560.0,1.11402616]
[1734340943748,1.7e-07,104580.0,104570.0,0.03794]
[1734340943956,1.7e-07,104580.0,104570.0,0.35760313]
[1734340944161,1.7e-07,104580.0,104570.0,0.50270438]
[1734340946527,1.7e-07,104580.0,104570.0,0.50265275]
[1734340947231,1.7e-07,104580.0,104570.0,0.47863527]
[1734340947429,1.7e-07,104580.0,104570.0,0.4914325]
[1734340947636,1.7e-07,104580.0,104570.0,0.6301346]
[1734340947962,1.7e-07,104580.0,104570.0,0.63093811]
[1734340948174,1.7e-07,104580.0,104570.0,0.61814088]
[1734340948380,1.7e-07,104580.0,104570.0,0.60852765]
[1734340948588,1.7e-07,104580.0,104570.0,0.61806528]
[1734340948797,1.7e-07,104580.0,104570.0,0.4881729]
[1734340949234,0.07980017,104580.0,104570.0,0.29341863]
[1734340952612,1.7e-07,104580.0,104570.0,0.29341863]
[1734340955168,1.7e-07,104580.0,104570.0,0.40374311]
[1734340955360,1.7e-07,104580.0,104570.0,0.42615357]
[1734340955567,1.7e-07,104580.0,104570.0,0.40374311]
[1734340956595,1.7e-07,104580.0,104570.0,0.40273553]
[1734340956797,0.00017257,104580.0,104570.0,0.40273553]
[1734340956995,5.7e-07,104580.0,104570.0,0.40273553]
[1734340957758,5.7e-07,104580.0,104570.0,0.14609006]
[1734340957959,5.7e-07,104580.0,104570.0,0.26885453]
[1734340958389,5.7e-07,104580.0,104570.0,0.40273553]
[1734340959026,5.7e-07,104580.0,104570.0,0.38779553]
[1734340959228,5.7e-07,104580.0,104570.0,0.40273553]
[1734340963979,0.0794726,104590.0,104580.0,0.15]
[1734340964153,0.0794726,104590.0,104580.0,0.283868]
[1734340966126,0.0794726,104590.0,104570.0,0.41125683]
[1734340966347,0.0794726,104590.0,104580.0,0.133868]
[1734340970001,0.1249726,104590.0,104580.0,0.283868]
[1734340970702,0.1600326,104590.0,104580.0,0.283868]
[1734340971354,0.2543233,104590.0,104580.0,0.283868]
[1734340972073,0.2192633,104590.0,104580.0,0.133868]
[1734340973895,0.7606633,104590.0,104580.0,0.133868]
[1734340977463,0.7606633,104590.0,104580.0,0.283868]
[1734340980546,0.2192633,104590.0,104580.0,0.283868]
[1734340980761,0.2192633,104590.0,104580.0,0.2839542]
[1734340983792,0.2904823,104590.0,104580.0,0.2839542]
[1734340985755,0.8318823,104590.0,104580.0,0.2839542]
[1734340996716,0.8319223,104590.0,104580.0,0.2839542]
[1734340999471,0.8669823,104590.0,104580.0,0.2839542]
[1734340999675,0.7421823,104590.0,104580.0,0.2839542]
[1734341000573,0.6128316,104590.0,104580.0,0.2839542]
[1734341000772,0.0714316,104590.0,104580.0,0.2839542]
[1734341001740,0.0714316,104590.0,104580.0,0.36978209]
[1734341002161,0.0714316,104590.0,104580.0,0.49852392]
[1734341003132,0.1064916,104590.0,104580.0,0.49852392]
[1734341003948,0.1064916,104590.0,104580.0,0.6701797]
[1734341004898,0.0714316,104590.0,104580.0,0.6701797]
[1734341005695,0.0709316,104590.0,104580.0,0.6701797]
[1734341009590,0.0709316,104590.0,104580.0,0.68192373]
[1734341010151,0.0709316,104590.0,104580.0,0.89649346]
[1734341010356,0.0709316,104590.0,104580.0,0.81066557]
[1734341010560,0.0709316,104590.0,104580.0,0.8106273]
[1734341012709,0.0709316,104590.0,104580.0,0.8870273]
[1734341012962,0.0709316,104590.0,104580.0,0.90535478]
[1734341013201,0.0709316,104590.0,104580.0,0.58665201]
[1734341014278,0.0709316,104590.0,104580.0,0.75822053]
[1734341015738,0.0709316,104590.0,104580.0,0.58665201]
[1734341016345,0.071104,104590.0,104580.0,0.58665201]
[1734341016554,0.071104,104590.0,104580.0,0.75817064]
[1734341016923,0.071104,104590.0,104580.0,0.75801204]
[1734341020343,1e-06,104590.0,104580.0,0.88659332]
[1734341020547,6e-07,104600.0,104580.0,0.78005093]
[1734341020749,6e-07,104600.0,104590.0,0.54011374]
[1734341020952,0.00016965,104600.0,104590.0,0.66214659]
[1734341021156,0.00016965,104600.0,104590.0,0.87654315]
[1734341021357,6.5e-07,104600.0,104590.0,0.87654315]
[1734341021562,6.5e-07,104600.0,104590.0,0.66214659]
[1734341022330,6.5e-07,104600.0,104590.0,0.74782212]
[1734341023746,0.6597,104620.0,104610.0,0.15]
[1734341023747,0.11826,104620.0,104610.0,0.15]
[1734341023951,0.2125507,104620.0,104610.0,0.15]
[1734341024164,0.2125507,104620.0,104600.0,0.267686]
[1734341024552,0.2125507,104620.0,104600.0,0.401529]
[1734341024780,0.2125507,104620.0,104610.0,0.13383]
[1734341028409,0.2127231,104620.0,104610.0,0.13383]
[1734341031038,0.2127631,104620.0,104610.0,0.13383]
[1734341031856,0.2127631,104620.0,104610.0,0.28383]
[1734341032385,0.2127631,104620.0,104610.0,0.28978452]
[1734341033379,0.2127631,104620.0,104610.0,0.28383]
[1734341035073,0.2266031,104620.0,104610.0,0.28383]
[1734341037044,0.75526994,104620.0,104610.0,0.28383]
[1734341038074,0.75400343,104620.0,104610.0,0.28383]
[1734341040206,0.75400343,104620.0,104610.0,0.13383]
[1734341040410,0.75400343,104620.0,104610.0,0.1339163]
[1734341042952,0.22533659,104620.0,104610.0,0.1339163]
[1734341069359,0.22533659,104620.0,104600.0,0.133837]
[1734341069559,0.0942907,104610.0,104600.0,0.133837]
[1734341069736,0.09548568,104610.0,104600.0,0.417674]
[1734341072922,0.63688568,104610.0,104600.0,0.417674]
[1734341073116,0.6356907,104610.0,104600.0,0.417674]
[1734341074004,0.7181907,104610.0,104600.0,0.417674]
[1734341074988,0.7181907,104610.0,104600.0,0.4177603]
[1734341078196,0.7181907,104610.0,104600.0,0.50364304]
[1734341079380,0.7181907,104610.0,104600.0,0.63246715]
[1734341082300,0.7181907,104610.0,104600.0,0.80423263]
[1734341086244,0.7183633,104610.0,104600.0,0.80423263]
[1734341090949,0.27113856,104610.0,104600.0,0.48246715]
[1734341091167,0.84829995,104610.0,104600.0,8.63e-05]
[1734341091435,0.96889995,104610.0,104600.0,8.63e-05]
[1734341091617,0.96905471,104610.0,104600.0,8.63e-05]
[1734341092201,0.87487945,104610.0,104600.0,8.63e-05]
[1734341092408,0.68369345,104610.0,104600.0,0.1148083]
[1734341093479,0.43908005,104610.0,104600.0,0.1148083]
[1734341093688,0.2245633,104610.0,104600.0,0.1148083]
[1734341095057,0.501556,104610.0,104600.0,0.1148083]
[1734341095272,0.31037,104610.0,104600.0,0.1148083]
[1734341095477,0.44988734,104610.0,104600.0,0.1148083]
[1734341095774,0.32117729,104610.0,104600.0,0.1148083]
[1734341096663,0.0501726,104610.0,104600.0,0.3437083]
[1734341096866,0.0501726,104610.0,104600.0,0.47721084]
[1734341097073,0.0501726,104610.0,104600.0,0.7779065]
[1734341097283,0.0501726,104610.0,104600.0,0.777417]
[1734341097479,0.0852326,104610.0,104600.0,0.777417]
[1734341097615,0.0852326,104610.0,104600.0,0.60559091]
[1734341099950,0.0501726,104610.0,104600.0,0.60559091]
[1734341100361,0.0501726,104610.0,104600.0,0.77694659]
[1734341100961,0.0501726,104610.0,104600.0,0.90565935]
[1734341102346,0.0501726,104610.0,104600.0,0.77694659]
[1734341106266,0.0501726,104610.0,104600.0,0.90557137]
[1734341111746,0.0501726,104610.0,104600.0,0.99127369]
[1734341112091,0.0501726,104610.0,104600.0,0.90557137]
[1734341112452,0.0501726,104610.0,104600.0,0.77643809]
[1734341115809,0.0501726,104610.0,104600.0,0.90498136]
[1734341116868,0.0501726,104610.0,104600.0,0.3908083]
[1734341117109,0.0501726,104610.0,104600.0,0.90487297]
[1734341118416,0.0501726,104610.0,104600.0,0.99054367]
[1734341121673,0.0501726,104610.0,104600.0,0.99041798]
[1734341125751,6e-07,104610.0,104600.0,0.60495461]
[1734341125908,6e-07,104610.0,104600.0,0.77627166]
[1734341126106,6e-07,104610.0,104600.0,0.77623174]
[1734341126341,6e-07,104610.0,104600.0,0.60493243]
[1734341127461,1e-06,104620.0,104600.0,0.87052244]
[1734341127639,1e-06,104620.0,104610.0,0.36393]
[1734341127837,1e-06,104620.0,104610.0,0.44957965]
[1734341128642,1e-06,104620.0,104610.0,0.57805413]
[1734341129466,1e-06,104620.0,104610.0,0.49795413]
[1734341129680,0.110361,104620.0,104610.0,0.28383]
[1734341131171,0.2517465,104620.0,104610.0,0.28383]
[1734341131370,0.2505517,104620.0,104610.0,0.28383]
[1734341131570,0.2507243,104620.0,104610.0,0.28383]
[1734341131800,0.2156643,104620.0,104610.0,0.28383]
[1734341135472,0.2156643,104620.0,104610.0,0.13383]
[1734341135699,0.22582819,104620.0,104610.0,0.13383]
[1734341136114,0.76722819,104620.0,104610.0,0.13383]
[1734341136326,0.1265,104610.0,104600.0,0.1148083]
[1734341136535,0.41317179,104610.0,104600.0,8.63e-05]
[1734341136790,0.41317179,104610.0,104600.0,0.1339293]
[1734341136791,0.2207907,104610.0,104600.0,0.1339293]
[1734341136989,0.4119767,104610.0,104600.0,8.63e-05]
[1734341137613,0.2207907,104610.0,104600.0,0.1339293]
[1734341138033,0.4119767,104610.0,104600.0,0.1339293]
[1734341138234,0.4119767,104610.0,104600.0,8.63e-05]
[1734341139382,0.4349767,104610.0,104600.0,8.63e-05]
[1734341139584,0.4849767,104610.0,104600.0,8.63e-05]
[1734341140245,0.1267,104600.0,104590.0,0.24727559]
[1734341140474,0.22218587,104600.0,104590.0,0.24727559]
[1734341140676,0.2209907,104600.0,104590.0,0.11342059]
[1734341143775,0.2209907,104600.0,104590.0,0.11350689]
[1734341144601,0.2560507,104600.0,104590.0,0.11350689]
[1734341144972,0.1716907,104600.0,104590.0,0.11350689]
[1734341147606,0.1293507,104600.0,104590.0,0.11350689]
[1734341147819,0.0942907,104600.0,104590.0,0.26350689]
[1734341148086,0.1570326,104610.0,104600.0,0.133843]
[1734341148280,0.2046233,104610.0,104600.0,0.133843]
[1734341149348,0.1695633,104610.0,104600.0,0.133843]
[1734341149553,0.17075824,104610.0,104600.0,0.133843]
[1734341151353,0.71215824,104610.0,104600.0,0.133843]
[1734341151553,0.7109633,104610.0,104600.0,0.133843]
[1734341154052,0.7561633,104610.0,104600.0,0.133843]
[1734341154252,0.2147633,104610.0,104600.0,0.133843]
[1734341154469,0.2046233,104610.0,104600.0,0.133843]
[1734341154693,0.1695633,104610.0,104600.0,0.133843]
[1734341154916,0.2046233,104610.0,104600.0,0.133843]
[1734341155341,0.1295233,104610.0,104600.0,0.133843]
[1734341155727,0.0944633,104610.0,104600.0,0.133843]
[1734341155908,0.1295233,104610.0,104600.0,0.133843]
[1734341156509,0.1295233,104610.0,104600.0,0.1339293]
[1734341158615,0.0001726,104610.0,104600.0,0.3315293]
[1734341158822,0.0352326,104610.0,104600.0,0.43169915]
[1734341159022,0.0001726,104610.0,104600.0,0.4081293]
[1734341159609,0.0352326,104610.0,104600.0,0.4081293]
[1734341159807,0.0001726,104610.0,104600.0,0.4081293]
[1734341162212,0.0001726,104610.0,104600.0,0.50402288]
[1734341162711,0.0001726,104610.0,104600.0,0.63234376]
[1734341162908,6e-07,104610.0,104600.0,0.72663446]
[1734341163121,6e-07,104610.0,104600.0,0.89772896]
[1734341166002,6e-07,104610.0,104600.0,0.80343826]
[1734341166201,6e-07,104610.0,104600.0,0.63234376]
[1734341166605,6e-07,104610.0,104600.0,0.50402288]
[1734341168316,0.0001732,104610.0,104600.0,0.50402288]
[1734341170056,0.0001732,104610.0,104600.0,0.41847563]
[1734341170239,0.0001732,104610.0,104600.0,0.29427563]
[1734341171212,0.0002132,104610.0,104600.0,0.29427563]
[1734341179295,0.1133732,104610.0,104600.0,0.1339293]
[1734341179503,0.1133732,104610.0,104600.0,8.63e-05]
[1734341179504,0.78034806,104610.0,104600.0,8.63e-05]
[1734341179757,1.0050899,104610.0,104600.0,8.63e-05]
[1734341179963,0.8139039,104610.0,104600.0,8.63e-05]
[1734341180166,1.0050899,104610.0,104600.0,8.63e-05]
[1734341180368,1.0280899,104610.0,104600.0,8.63e-05]
[1734341180574,0.369204,104600.0,104590.0,8.63e-05]
[1734341180781,0.50766996,104600.0,104590.0,8.63e-05]
[1734341181312,0.2222907,104600.0,104590.0,8.63e-05]
[1734341181513,0.2722907,104600.0,104590.0,0.1339423]
[1734341185330,0.28233778,104600.0,104590.0,0.1339423]
[1734341185752,0.23237778,104600.0,104590.0,0.1339423]
[1734341186180,0.47358178,104600.0,104590.0,8.63e-05]
[1734341187190,0.47358178,104600.0,104590.0,0.1339423]
[1734341187398,0.23237778,104600.0,104590.0,0.1339423]
[1734341187548,0.28237778,104600.0,104590.0,0.1339423]
[1734341188475,0.23237778,104600.0,104590.0,0.1339423]
[1734341188647,0.28237778,104600.0,104590.0,0.1339423]
[1734341189427,0.23237778,104600.0,104590.0,0.1339423]
[1734341190171,0.1724307,104600.0,104590.0,0.1339423]
[1734341190402,0.0943307,104600.0,104590.0,0.1339423]
[1734341191014,0.09552578,104600.0,104590.0,0.1339423]
[1734341195479,0.03506,104590.0,104580.0,0.15]
[1734341195883,0.2108507,104590.0,104570.0,8.62e-05]
[1734341196087,0.09548601,104580.0,104570.0,0.1339552]
[1734341196289,0.14548601,104580.0,104570.0,0.2678292]
[1734341197591,0.09548601,104580.0,104570.0,0.2678292]
[1734341197789,0.24662974,104580.0,104570.0,0.2678292]
[1734341197995,0.0942907,104580.0,104570.0,0.2678292]
[1734341198201,0.09548608,104580.0,104570.0,0.2678292]
[1734341199296,0.63688608,104580.0,104570.0,0.2678292]
[1734341199498,0.6356907,104580.0,104570.0,0.2678292]
[1734341201014,0.64553235,104580.0,104570.0,0.2678292]
[1734341203039,0.64553235,104580.0,104570.0,8.62e-05]
[1734341203251,0.97874861,104580.0,104570.0,8.62e-05]
[1734341203464,0.96627335,104580.0,104570.0,8.62e-05]
[1734341204095,0.77503235,104580.0,104570.0,0.1148412]
[1734341205446,0.23363235,104580.0,104570.0,0.1148412]
[1734341224833,0.23380495,104580.0,104570.0,0.1148412]
[1734341230387,0.28380495,104580.0,104570.0,0.1148412]
[1734341233720,0.23380495,104580.0,104570.0,0.1148412]
[1734341233923,0.28380495,104580.0,104570.0,0.1148412]
[1734341236581,0.56922121,104580.0,104570.0,8.62e-05]
[1734341236807,0.64222121,104580.0,104570.0,8.62e-05]
[1734341237256,0.72782097,104580.0,104570.0,8.62e-05]
[1734341237420,0.85622062,104580.0,104570.0,8.62e-05]
[1734341237621,0.72782097,104580.0,104570.0,8.62e-05]
[1734341238189,0.85622062,104580.0,104570.0,8.62e-05]
[1734341240223,1.02742015,104580.0,104570.0,8.62e-05]
[1734341241184,1.15581981,104580.0,104570.0,8.62e-05]
[1734341242161,1.02742016,104580.0,104570.0,8.62e-05]
[1734341242391,0.9332449,104580.0,104570.0,8.62e-05]
[1734341242984,0.95280942,104580.0,104570.0,8.62e-05]
[1734341246293,0.95389203,104580.0,104570.0,8.62e-05]
[1734341249313,1.08264016,104580.0,104570.0,8.62e-05]
[1734341253158,0.95389203,104580.0,104570.0,8.62e-05]
[1734341253602,1.1052969,104580.0,104570.0,8.62e-05]
[1734341254013,0.93361621,104580.0,104570.0,8.62e-05]
[1734341254883,0.88361621,104580.0,104570.0,8.62e-05]
[1734341255115,0.87653638,104580.0,104570.0,8.62e-05]
[1734341255356,0.8764593,104580.0,104570.0,8.62e-05]
[1734341259862,0.87622525,104580.0,104570.0,8.62e-05]
[1734341261695,0.83333287,104580.0,104570.0,8.62e-05]
[1734341262093,1.05478363,104580.0,104570.0,8.62e-05]
[1734341263513,0.88333287,104580.0,104570.0,8.62e-05]
[1734341265520,0.92622525,104580.0,104570.0,8.62e-05]
[1734341265929,0.88330386,104580.0,104570.0,8.62e-05]
[1734341266145,0.97040051,104580.0,104570.0,8.62e-05]
[1734341267959,0.83329258,104580.0,104570.0,8.62e-05]
[1734341272239,0.505537,104570.0,104550.0,0.22425328]
[1734341272440,0.09548634,104560.0,104550.0,0.22425328]
[1734341272649,0.09548634,104560.0,104550.0,0.20932441]
[1734341272851,0.09548634,104560.0,104550.0,0.22425345]
[1734341273043,0.09548634,104560.0,104550.0,0.20932441]
[1734341273641,0.09548634,104560.0,104550.0,0.20938078]
[1734341279315,0.19080882,104560.0,104550.0,0.20938078]
[1734341281019,0.19083677,104560.0,104550.0,0.20938078]
[1734341281834,0.10509845,104560.0,104550.0,0.20938078]
[1734341282629,0.19083677,104560.0,104550.0,0.20938078]
[1734341284881,0.10509845,104560.0,104550.0,0.20938078]
[1734341285288,0.10509845,104560.0,104540.0,0.267821]
[1734341285620,0.10525993,104560.0,104550.0,0.133907]
[1734341287411,0.10525993,104560.0,104550.0,0.133238]
[1734341291296,0.19100066,104560.0,104550.0,0.133238]
[1734341291731,0.19100066,104560.0,104550.0,0.1333243]
[1734341292163,0.10525993,104560.0,104550.0,0.1333243]
[1734341292369,0.19100066,104560.0,104550.0,0.1333243]
[1734341293384,0.19100836,104560.0,104550.0,0.1333243]
[1734341295295,0.31963101,104560.0,104550.0,0.1331573]
[1734341295497,0.31843537,104560.0,104550.0,0.1331573]
[1734341296333,0.18981272,104560.0,104550.0,0.1331573]
[1734341296540,0.19100829,104560.0,104550.0,0.1331573]
[1734341297593,0.31963094,104560.0,104550.0,0.1331573]
[1734341297716,0.31863935,104560.0,104550.0,0.1331573]
[1734341298683,0.4902994,104560.0,104550.0,0.1331573]
[1734341301411,0.4902994,104560.0,104540.0,0.16693108]
[1734341301617,0.86003935,104560.0,104540.0,0.081]
[1734341301823,0.86003935,104560.0,104550.0,0.114777]
[1734341302025,0.73129431,104560.0,104550.0,0.114777]
[1734341303428,0.73129431,104560.0,104550.0,0.1148634]
[1734341303636,0.73146711,104560.0,104550.0,0.1148634]
[1734341304445,0.19006711,104560.0,104550.0,0.2459634]
[1734341304644,0.19126268,104560.0,104550.0,0.2459634]
[1734341306092,0.19126268,104560.0,104550.0,0.1148634]
[1734341306469,0.19131848,104560.0,104550.0,0.1148634]
[1734341307507,0.73271848,104560.0,104550.0,0.1148634]
[1734341307713,0.73152291,104560.0,104550.0,0.1148634]
[1734341307940,0.73152291,104560.0,104550.0,0.1931634]
[1734341311342,0.73152291,104560.0,104550.0,0.1148634]
[1734341311546,0.86035165,104560.0,104550.0,0.1148634]
[1734341314931,1.0321233,104560.0,104550.0,0.1148634]
[1734341315309,0.86042041,104560.0,104550.0,0.1148634]
[1734341316421,1.03224707,104560.0,104550.0,0.1148634]
[1734341316634,0.8858683,104560.0,104550.0,0.1770516]
[1734341316870,0.57679428,104560.0,104550.0,0.50842036]
[1734341317067,0.57679428,104560.0,104550.0,0.61837758]
[1734341317273,0.57679428,104560.0,104550.0,0.79031836]
[1734341317687,0.57679428,104560.0,104550.0,0.6182539]
[1734341319181,0.57679428,104560.0,104550.0,0.53233298]
[1734341319324,0.57679428,104560.0,104550.0,0.4034516]
[1734341319527,0.03539428,104560.0,104550.0,0.66435138]
[1734341319722,0.03539428,104560.0,104550.0,0.83619121]
[1734341320502,0.03539428,104560.0,104550.0,0.66435138]
[1734341321947,0.03539428,104560.0,104550.0,0.66428927]
[1734341322824,0.03539428,104560.0,104550.0,0.53544667]
[1734341323260,0.03539428,104560.0,104550.0,0.66428927]
[1734341325287,0.03539428,104560.0,104550.0,0.53544667]
[1734341326129,0.03539428,104560.0,104550.0,0.66428927]
[1734341326465,0.03539428,104560.0,104550.0,0.53544667]
[1734341329687,0.03539428,104560.0,104550.0,0.30975056]
[1734341330491,0.03539428,104560.0,104550.0,0.42452756]
[1734341331254,0.00033428,104560.0,104550.0,0.42452756]
[1734341331485,0.00033428,104560.0,104550.0,0.48671576]
[1734341331687,0.00033428,104560.0,104550.0,0.42452756]
[1734341332378,0.00037428,104560.0,104550.0,0.42452756]
[1734341333651,0.00037428,104560.0,104550.0,0.48671576]
[1734341333885,0.00037428,104560.0,104550.0,0.70145343]
[1734341334504,0.00037428,104560.0,104550.0,0.57261083]
[1734341335090,0.00037428,104560.0,104550.0,0.70145343]
[1734341335296,0.00037428,104560.0,104550.0,0.51042263]
[1734341335893,0.00037428,104560.0,104550.0,0.66690153]
[1734341336089,2.8e-07,104560.0,104550.0,0.81068413]
[1734341336323,2.8e-07,104560.0,104550.0,0.81028652]
[1734341336925,2.8e-07,104560.0,104550.0,0.87247472]
[1734341337134,2.8e-07,104560.0,104550.0,0.9080317]
[1734341337296,2.8e-07,104560.0,104550.0,1.01731555]
[1734341337496,2.8e-07,104560.0,104550.0,0.93147098]
[1734341337723,2.8e-07,104560.0,104550.0,0.99365918]
[1734341337899,0.0001726,104570.0,104560.0,0.16494]
[1734341337900,8.8e-07,104570.0,104560.0,0.16494]
[1734341338103,2e-07,104570.0,104560.0,1.10737944]
[1734341338509,8e-07,104580.0,104570.0,0.01494]
[1734341338708,8e-07,104580.0,104570.0,0.69259438]
[1734341338954,8e-07,104580.0,104570.0,0.9359069]
[1734341339504,8e-07,104580.0,104570.0,1.0089069]
[1734341339700,8e-07,104580.0,104570.0,1.30893634]
[1734341339902,8e-07,104580.0,104570.0,1.18037882]
[1734341340051,8e-07,104580.0,104570.0,1.05182131]
[1734341342255,8e-07,104580.0,104570.0,0.86525671]
[1734341342414,8e-07,104580.0,104570.0,0.80098655]
[1734341342781,8e-07,104580.0,104570.0,0.84451587]
[1734341343409,8e-07,104580.0,104570.0,0.79629187]
[1734341344423,8e-07,104580.0,104570.0,0.96694763]
[1734341345257,8e-07,104580.0,104570.0,1.09495033]
[1734341345438,8e-07,104580.0,104570.0,1.14235485]
[1734341345641,8e-07,104580.0,104570.0,0.72320092]
[1734341345860,8e-07,104580.0,104570.0,0.77320092]
[1734341346466,8e-07,104580.0,104570.0,0.64519822]
[1734341349299,8e-07,104580.0,104570.0,0.5598537]
[1734341351755,8e-07,104580.0,104570.0,0.55994]
[1734341352091,0.0001734,104580.0,104570.0,0.55994]
[1734341352279,0.0001734,104580.0,104570.0,0.6843164]
[1734341353877,0.0001734,104580.0,104570.0,0.1246093]
[1734341354664,0.0001734,104580.0,104560.0,0.26893936]
[1734341354872,0.0001734,104580.0,104570.0,0.0621882]
[1734341355054,0.0001734,104580.0,104570.0,0.1769432]
[1734341355251,0.0001734,104580.0,104570.0,0.3269432]
[1734341356993,0.0001734,104580.0,104570.0,0.3651952]
[1734341360623,0.0001734,104580.0,104570.0,0.4273834]
[1734341360823,0.0001734,104580.0,104570.0,0.5216741]
[1734341362231,0.0001734,104580.0,104570.0,0.5156741]
[1734341367349,4e-07,104580.0,104570.0,0.5928023]
[1734341367557,4e-07,104580.0,104570.0,0.5366141]
[1734341367738,4e-07,104580.0,104570.0,0.5216741]
[1734341368010,4e-07,104580.0,104570.0,0.5366141]
[1734341368212,4e-07,104580.0,104570.0,0.4744259]
[1734341368438,4e-07,104580.0,104570.0,0.5366141]
[1734341368658,4e-07,104580.0,104570.0,0.5216741]
[1734341368865,4e-07,104580.0,104570.0,0.5366141]
[1734341369325,4e-07,104580.0,104570.0,0.62186947]
[1734341370361,4e-07,104580.0,104570.0,0.62207794]
[1734341370562,4e-07,104580.0,104570.0,0.60713794]
[1734341370981,4e-07,104580.0,104570.0,0.62207794]
[1734341372228,4e-07,104580.0,104570.0,0.7502737]
[1734341373399,4e-07,104580.0,104570.0,0.92120138]
[1734341373776,4e-07,104580.0,104570.0,0.90626138]
[1734341374199,4e-07,104580.0,104570.0,0.5788548]